Workbook

Sheet Hoja1
B2: Cuenta Pública 2022 Estado Analítico del Activo (pesos)
B4: Entidad Municipal: (1) TEXCALTITLAN No. 4052 | G4: Del 1 de Enero al 31 de Diciembre de 2022 (2)
B7: Concepto (3) | C7: Saldo Inicial (4) | D7: Cargos del Período (5) | E7: Abonos del Período (6) | F7: Saldo Final (7) | G7: Variación del Período (8)
C8: 1 | D8: 2 | E8: 3 | F8: 4=(1+2-3) | G8: (4-1)
B10: ACTIVO
B12: Activo Circulante | C12: =SUM(C13:C20) -> 218,890.62 | D12: =SUM(D13:D20) -> 1,118,758.58 | E12: =SUM(E13:E20) -> 1,022,193.97 | F12: =SUM(F13:F20) -> 315,455.23 | G12: =F12-C12 -> 96,564.61
B14: Efectivo y Equivalentes | C14: 216,298.44 | D14: 1,115,497.32 | E14: 1,022,193.97 | F14: =C14+D14-E14 -> 309,601.79 | G14: =F14-C14 -> 93,303.35
B15: Derechos a Recibir Efectivo o Equivalentes | C15: 2,592.18 | D15: 3,261.26 | E15: 0 | F15: 5,853.44 | G15: =F15-C15 -> 3,261.26
B16: Derechos a Recibir Bienes o Servicios | C16: 0 | D16: 0 | E16: 0 | F16: 0 | G16: 0
B17: Inventarios | C17: 0 | D17: 0 | E17: 0 | F17: 0 | G17: 0
B18: Almacenes | C18: 0 | D18: 0 | E18: 0 | F18: 0 | G18: 0
B19: Estimación por Pérdida o Deterioro de Activos Circulantes | C19: 0 | D19: 0 | E19: 0 | F19: 0 | G19: 0
B20: Otros Activos Circulantes | C20: 0 | D20: 0 | E20: 0 | F20: 0 | G20: 0
B25: Activo no Circulante | C25: =SUM(C26:C35) -> -46,650.00 | D25: =SUM(D26:D35) -> 0 | E25: =SUM(E26:E35) -> 0 | F25: =SUM(F26:F35) -> -46,650.00 | G25: 0
B27: Inversiones Financieras a Largo Plazo | C27: 0 | D27: 0 | E27: 0 | F27: =C27+D27-E27 -> 0 | G27: 0
B28: Derechos a Recibir Efectivo o Equivalentes a Largo Plazo | C28: 0 | D28: 0 | E28: 0 | F28: =C28+D28-E28 -> 0 | G28: 0
B29: Bienes Inmuebles, Infraestructura y Construcciones en Proceso | C29: 0 | D29: 0 | E29: 0 | F29: 0 | G29: 0
B30: Bienes Muebles | C30: -46,650.00 | D30: 0 | E30: 0 | F30: -46,650.00 | G30: 0
B31: Activos Intangibles | C31: 0 | D31: 0 | E31: 0 | F31: 0 | G31: 0
B32: Depreciación, Deterioro y Amortización Acumulada de Bienes | C32: 0 | D32: 0 | E32: 0 | F32: =C32+D32-E32 -> 0 | G32: 0
B33: Activos Diferidos | C33: 0 | D33: 0 | E33: 0 | F33: 0 | G33: 0
B34: Estimación por Pérdida o Deterioro de Activos no Circulantes | C34: 0 | D34: 0 | E34: 0 | F34: =C34+D34-E34 -> 0 | G34: 0
B35: Otros Activos no Circulantes | C35: 0 | D35: 0 | E35: 0 | F35: 0 | G35: 0
B42: Total del Activo (9) | C42: =C12+C25 -> 172,240.62 | D42: =D12+D25 -> 1,118,758.58 | E42: =E12+E25 -> 1,022,193.97 | F42: =F12+F25 -> 268,805.23 | G42: =G12+G25 -> 96,564.61
A46: "Bajo protesta de decir verdad declaramos que los Estados Financieros y sus notas, son razonablemente correctos y son responsabilidad del emisor" | Y46: "Bajo protesta de decir verdad declaramos que los Estados Financieros y sus notas, son razonablemente correctos y son responsabilidad del emisor" | AG46: "Bajo protesta de decir verdad declaramos que los Estados Financieros y sus notas, son razonablemente correctos y son responsabilidad del emisor" | AO46: "Bajo protesta de decir verdad declaramos que los Estados Financieros y sus notas, son razonablemente correctos y son responsabilidad del emisor" | AW46: "Bajo protesta de decir verdad declaramos que los Estados Financieros y sus notas, son razonablemente correctos y son responsabilidad del emisor" | BE46: "Bajo protesta de decir verdad declaramos que los Estados Financieros y sus notas, son razonablemente correctos y son responsabilidad del emisor" | BM46: "Bajo protesta de decir verdad declaramos que los Estados Financieros y sus notas, son razonablemente correctos y son responsabilidad del emisor" | BU46: "Bajo protesta de decir verdad declaramos que los Estados Financieros y sus notas, son razonablemente correctos y son responsabilidad del emisor" | CC46: "Bajo protesta de decir verdad declaramos que los Estados Financieros y sus notas, son razonablemente correctos y son responsabilidad del emisor" | CK46: "Bajo protesta de decir verdad declaramos que los Estados Financieros y sus notas, son razonablemente correctos y son responsabilidad del emisor" | CS46: "Bajo protesta de decir verdad declaramos que los Estados Financieros y sus notas, son razonablemente correctos y son responsabilidad del emisor" | DA46: "Bajo protesta de decir verdad declaramos que los Estados Financieros y sus notas, son razonablemente correctos y son responsabilidad del emisor" | DI46: "Bajo protesta de decir verdad declaramos que los Estados Financieros y sus notas, son razonablemente correctos y son responsabilidad del emisor" | DQ46: "Bajo protesta de decir verdad declaramos que los Estados Financieros y sus notas, son razonablemente correctos y son responsabilidad del emisor" | DY46: "Bajo protesta de decir verdad declaramos que los Estados Financieros y sus notas, son razonablemente correctos y son responsabilidad del emisor" | EG46: "Bajo protesta de decir verdad declaramos que los Estados Financieros y sus notas, son razonablemente correctos y son responsabilidad del emisor" | EO46: "Bajo protesta de decir verdad declaramos que los Estados Financieros y sus notas, son razonablemente correctos y son responsabilidad del emisor" | EW46: "Bajo protesta de decir verdad declaramos que los Estados Financieros y sus notas, son razonablemente correctos y son responsabilidad del emisor" | FE46: "Bajo protesta de decir verdad declaramos que los Estados Financieros y sus notas, son razonablemente correctos y son responsabilidad del emisor" | FM46: "Bajo protesta de decir verdad declaramos que los Estados Financieros y sus notas, son razonablemente correctos y son responsabilidad del emisor" | FU46: "Bajo protesta de decir verdad declaramos que los Estados Financieros y sus notas, son razonablemente correctos y son responsabilidad del emisor" | GC46: "Bajo protesta de decir verdad declaramos que los Estados Financieros y sus notas, son razonablemente correctos y son responsabilidad del emisor" | GK46: "Bajo protesta de decir verdad declaramos que los Estados Financieros y sus notas, son razonablemente correctos y son responsabilidad del emisor" | GS46: "Bajo protesta de decir verdad declaramos que los Estados Financieros y sus notas, son razonablemente correctos y son responsabilidad del emisor" | HA46: "Bajo protesta de decir verdad declaramos que los Estados Financieros y sus notas, son razonablemente correctos y son responsabilidad del emisor" | HI46: "Bajo protesta de decir verdad declaramos que los Estados Financieros y sus notas, son razonablemente correctos y son responsabilidad del emisor" | HQ46: "Bajo protesta de decir verdad declaramos que los Estados Financieros y sus notas, son razonablemente correctos y son responsabilidad del emisor" | HY46: "Bajo protesta de decir verdad declaramos que los Estados Financieros y sus notas, son razonablemente correctos y son responsabilidad del emisor" | IG46: "Bajo protesta de decir verdad declaramos que los Estados Financieros y sus notas, son razonablemente correctos y son responsabilidad del emisor" | IO46: "Bajo protesta de decir verdad declaramos que los Estados Financieros y sus notas, son razonablemente correctos y son responsabilidad del emisor"
